[Event "*** Titled Tuesday Blitz"]
[Site "Chess.com"]
[Date "2021.04.06"]
[Round "5"]
[White "TigranMukhutdinov"]
[Black "Rozhkov_V"]
[Result "1-0"]
[WhiteElo "2599"]
[BlackElo "2433"]
[TimeControl "180+1"]
[EndTime "10:58:04 PDT"]
[Termination "TigranMukhutdinov won by resignation"]

1. Nf3 {[%clk 0:03:00.9]} 1... d5 {[%clk 0:02:59.5]} 2. g3 {[%clk 0:03:01]} 2...
Nf6 {[%clk 0:02:59]} 3. Bg2 {[%clk 0:03:01.4]} 3... e6 {[%clk 0:02:59.3]} 4. O-O
{[%clk 0:03:01.4]} 4... Be7 {[%clk 0:02:59.5]} 5. c4 {[%clk 0:03:02.1]} 5... O-O
{[%clk 0:02:59.6]} 6. d4 {[%clk 0:03:02.8]} 6... dxc4 {[%clk 0:02:59.8]} 7. Qc2
{[%clk 0:03:03.3]} 7... a6 {[%clk 0:02:57.9]} 8. a4 {[%clk 0:03:03.1]} 8... Nc6
{[%clk 0:02:50.1]} 9. Qxc4 {[%clk 0:02:59.4]} 9... Qd5 {[%clk 0:02:33]} 10. Qxd5
{[%clk 0:02:53.6]} 10... exd5 {[%clk 0:02:33]} 11. Bf4 {[%clk 0:02:52.4]} 11...
Bg4 {[%clk 0:02:07.5]} 12. e3 {[%clk 0:02:41.4]} 12... Bd6 {[%clk 0:01:52.8]}
13. Bxd6 {[%clk 0:02:39.9]} 13... cxd6 {[%clk 0:01:52.7]} 14. Rc1 {[%clk
0:02:39.6]} 14... Nb4 {[%clk 0:01:41.7]} 15. Ne1 {[%clk 0:02:22]} 15... Rac8
{[%clk 0:01:35.6]} 16. Nc3 {[%clk 0:02:13]} 16... Be6 {[%clk 0:01:29.1]} 17. a5
{[%clk 0:02:12.8]} 17... h6 {[%clk 0:01:26.6]} 18. Ra4 {[%clk 0:02:10.5]} 18...
Nc6 {[%clk 0:01:20.2]} 19. Nd3 {[%clk 0:02:10.7]} 19... Rc7 {[%clk 0:01:09.8]}
20. Nf4 {[%clk 0:02:02.7]} 20... Ne7 {[%clk 0:01:05.8]} 21. Rb4 {[%clk
0:01:57.6]} 21... Rfc8 {[%clk 0:01:05.8]} 22. Rb6 {[%clk 0:01:54.5]} 22... Rd8
{[%clk 0:00:23.4]} 23. Ra1 {[%clk 0:01:48.2]} 23... g5 {[%clk 0:00:23.1]} 24.
Nd3 {[%clk 0:01:47.1]} 24... Nc6 {[%clk 0:00:23.4]} 25. Nb4 {[%clk 0:01:42.2]}
25... Nxb4 {[%clk 0:00:23.5]} 26. Rxb4 {[%clk 0:01:43.1]} 26... Rdc8 {[%clk
0:00:23.8]} 27. Rb6 {[%clk 0:01:40.8]} 27... Rd8 {[%clk 0:00:22.3]} 28. Ra3
{[%clk 0:01:38.1]} 28... Kf8 {[%clk 0:00:22.6]} 29. Rab3 {[%clk 0:01:37.4]}
29... Rdd7 {[%clk 0:00:23]} 30. Kf1 {[%clk 0:01:27.4]} 30... Ke7 {[%clk
0:00:23.1]} 31. Ke2 {[%clk 0:01:26.2]} 31... Kd8 {[%clk 0:00:22.5]} 32. Ra3
{[%clk 0:01:14.9]} 32... Kc8 {[%clk 0:00:22.3]} 33. f3 {[%clk 0:01:10.4]} 33...
Rc6 {[%clk 0:00:22.5]} 34. Rxc6+ {[%clk 0:01:06.9]} 34... bxc6 {[%clk
0:00:22.5]} 35. Na4 {[%clk 0:01:07.1]} 35... Rb7 {[%clk 0:00:20.3]} 36. Kd2
{[%clk 0:01:05.5]} 36... Rb5 {[%clk 0:00:19.1]} 37. Bf1 {[%clk 0:01:03.5]} 37...
Rxa5 {[%clk 0:00:18.9]} 38. Nb6+ {[%clk 0:01:03.9]} 38... Kc7 {[%clk 0:00:19.2]}
39. Rxa5 {[%clk 0:01:04.8]} 39... Kxb6 {[%clk 0:00:20.1]} 40. Rxa6+ {[%clk
0:01:05.3]} 40... Kb7 {[%clk 0:00:20.5]} 41. Ra3 {[%clk 0:01:03.1]} 41... g4
{[%clk 0:00:20.7]} 42. Be2 {[%clk 0:00:59.5]} 42... gxf3 {[%clk 0:00:21.1]} 43.
Bxf3 {[%clk 0:01:00.4]} 43... Kb6 {[%clk 0:00:21.5]} 44. Ra8 {[%clk 0:01:00.1]}
44... Bf5 {[%clk 0:00:21.2]} 45. Rf8 {[%clk 0:00:59.3]} 45... Bg6 {[%clk
0:00:21.2]} 46. Rd8 {[%clk 0:00:57.6]} 46... Kc7 {[%clk 0:00:20.7]} 47. Rh8
{[%clk 0:00:58.2]} 47... h5 {[%clk 0:00:20.7]} 48. h3 {[%clk 0:00:58.7]} 48...
Kd7 {[%clk 0:00:20.1]} 49. g4 {[%clk 0:00:58.9]} 49... hxg4 {[%clk 0:00:20.6]}
50. Bxg4+ {[%clk 0:00:59.5]} 50... Kc7 {[%clk 0:00:19.8]} 51. Bf3 {[%clk
0:00:59.1]} 51... Kd7 {[%clk 0:00:18.3]} 52. h4 {[%clk 0:00:59.4]} 52... Ke7
{[%clk 0:00:18.8]} 53. h5 {[%clk 0:00:59]} 53... Bf5 {[%clk 0:00:18.9]} 54. h6
{[%clk 0:00:56.9]} 54... Bg6 {[%clk 0:00:17.7]} 55. Rc8 {[%clk 0:00:53.2]} 55...
Kd7 {[%clk 0:00:17.4]} 56. Ra8 {[%clk 0:00:51.7]} 56... Ke7 {[%clk 0:00:16.1]}
57. b4 {[%clk 0:00:51.5]} 57... Kd7 {[%clk 0:00:16]} 58. Ke2 {[%clk 0:00:49.5]}
58... Ke7 {[%clk 0:00:15.7]} 59. Kf2 {[%clk 0:00:49.9]} 59... Kd7 {[%clk
0:00:16.1]} 60. Kg3 {[%clk 0:00:50.4]} 60... Ke6 {[%clk 0:00:16.4]} 61. Kf4
{[%clk 0:00:49.9]} 61... Ke7 {[%clk 0:00:16]} 62. Ra7+ {[%clk 0:00:49]} 62...
Ke6 {[%clk 0:00:16.2]} 63. Rc7 {[%clk 0:00:46.3]} 1-0

[Event "*** Titled Tuesday Blitz"]
[Site "Chess.com"]
[Date "2021.04.06"]
[Round "5"]
[White "zmeeed67"]
[Black "IriBu"]
[Result "1-0"]
[WhiteElo "2424"]
[BlackElo "2549"]
[TimeControl "180+1"]
[EndTime "10:58:06 PDT"]
[Termination "zmeeed67 won by checkmate"]

1. d4 {[%clk 0:02:44.5]} 1... Nf6 {[%clk 0:02:59]} 2. c4 {[%clk 0:02:44.9]} 2...
e6 {[%clk 0:02:59.3]} 3. Nc3 {[%clk 0:02:44.9]} 3... Bb4 {[%clk 0:02:59]} 4. f3
{[%clk 0:02:44.4]} 4... O-O {[%clk 0:02:56.1]} 5. a3 {[%clk 0:02:44.5]} 5...
Bxc3+ {[%clk 0:02:56.2]} 6. bxc3 {[%clk 0:02:45.4]} 6... d5 {[%clk 0:02:56.9]}
7. cxd5 {[%clk 0:02:46.3]} 7... exd5 {[%clk 0:02:57.8]} 8. e3 {[%clk 0:02:46.8]}
8... Bf5 {[%clk 0:02:58]} 9. Ne2 {[%clk 0:02:46.1]} 9... c5 {[%clk 0:02:57.7]}
10. Ng3 {[%clk 0:02:46.8]} 10... Bg6 {[%clk 0:02:57.9]} 11. Bd3 {[%clk
0:02:47.5]} 11... Nc6 {[%clk 0:02:56.2]} 12. O-O {[%clk 0:02:47.5]} 12... Re8
{[%clk 0:02:54.3]} 13. Bxg6 {[%clk 0:02:37.3]} 13... hxg6 {[%clk 0:02:53.9]} 14.
Qd3 {[%clk 0:02:38]} 14... Rc8 {[%clk 0:02:52.6]} 15. Bb2 {[%clk 0:02:35.9]}
15... Qd7 {[%clk 0:02:49.9]} 16. Rad1 {[%clk 0:02:34.1]} 16... cxd4 {[%clk
0:02:43.9]} 17. cxd4 {[%clk 0:02:33.5]} 17... Na5 {[%clk 0:02:43.2]} 18. e4
{[%clk 0:02:29.5]} 18... Nc4 {[%clk 0:02:41]} 19. Bc1 {[%clk 0:02:29.6]} 19...
Nh7 {[%clk 0:02:36.9]} 20. e5 {[%clk 0:02:26.4]} 20... Nf8 {[%clk 0:02:36.6]}
21. f4 {[%clk 0:02:26.2]} 21... f5 {[%clk 0:02:33.4]} 22. exf6 {[%clk 0:02:20]}
22... gxf6 {[%clk 0:02:34.3]} 23. f5 {[%clk 0:01:45]} 23... g5 {[%clk
0:02:22.4]} 24. h4 {[%clk 0:01:45.5]} 24... Qe7 {[%clk 0:01:50.1]} 25. hxg5
{[%clk 0:01:41.9]} 25... Nd6 {[%clk 0:01:38.2]} 26. gxf6 {[%clk 0:01:20.3]}
26... Qh7 {[%clk 0:01:32.1]} 27. Rf4 {[%clk 0:00:29.1]} 27... Ne4 {[%clk
0:01:17.4]} 28. Rg4+ {[%clk 0:00:24.9]} 28... Kh8 {[%clk 0:01:15]} 29. Nxe4
{[%clk 0:00:20]} 29... Rxe4 {[%clk 0:01:14.6]} 30. Rxe4 {[%clk 0:00:12.6]} 30...
dxe4 {[%clk 0:01:14.9]} 31. Qxe4 {[%clk 0:00:12.6]} 31... Qh5 {[%clk 0:01:14.8]}
32. Re1 {[%clk 0:00:09.4]} 32... b5 {[%clk 0:01:02]} 33. Bf4 {[%clk 0:00:09.3]}
33... Qh4 {[%clk 0:00:57.4]} 34. Qe7 {[%clk 0:00:02.7]} 34... Qg4 {[%clk
0:00:54.2]} 35. Be5 {[%clk 0:00:02.5]} 35... a5 {[%clk 0:00:44.9]} 36. f7+
{[%clk 0:00:02.5]} 36... Kh7 {[%clk 0:00:44.7]} 37. Qf6 {[%clk 0:00:03.1]} 37...
Nd7 {[%clk 0:00:37.9]} 38. Qe6 {[%clk 0:00:03.3]} 38... Nxe5 {[%clk 0:00:26]}
39. dxe5 {[%clk 0:00:03.4]} 39... Qg3 {[%clk 0:00:19.1]} 40. Qg6+ {[%clk
0:00:03.3]} 40... Qxg6 {[%clk 0:00:18.9]} 41. fxg6+ {[%clk 0:00:04.2]} 41...
Kxg6 {[%clk 0:00:19.6]} 42. e6 {[%clk 0:00:04.7]} 42... b4 {[%clk 0:00:18.9]}
43. axb4 {[%clk 0:00:04.2]} 43... axb4 {[%clk 0:00:19.8]} 44. Rf1 {[%clk
0:00:04.8]} 44... Kg7 {[%clk 0:00:16.9]} 45. e7 {[%clk 0:00:05]} 45... b3 {[%clk
0:00:17.5]} 46. f8=Q+ {[%clk 0:00:05.9]} 46... Rxf8 {[%clk 0:00:17.7]} 47.
exf8=Q+ {[%clk 0:00:06.8]} 47... Kg6 {[%clk 0:00:18.6]} 48. Qb8 {[%clk
0:00:07.5]} 48... b2 {[%clk 0:00:19.1]} 49. Qxb2 {[%clk 0:00:07.7]} 49... Kg5
{[%clk 0:00:20]} 50. Qf6+ {[%clk 0:00:08]} 50... Kg4 {[%clk 0:00:20.9]} 51. Qf5+
{[%clk 0:00:08.4]} 51... Kg3 {[%clk 0:00:21.5]} 52. Qf4# {[%clk 0:00:09.1]} 1-0

[Event "*** Titled Tuesday Blitz"]
[Site "Chess.com"]
[Date "2021.04.06"]
[Round "5"]
[White "ARMQUEEN"]
[Black "jraosam"]
[Result "1-0"]
[WhiteElo "2308"]
[BlackElo "1870"]
[TimeControl "180+1"]
[EndTime "10:58:06 PDT"]
[Termination "ARMQUEEN won on time"]

1. e4 {[%clk 0:02:54.6]} 1... c5 {[%clk 0:02:59.6]} 2. Nc3 {[%clk 0:02:50.3]}
2... Nc6 {[%clk 0:02:57.2]} 3. Bb5 {[%clk 0:02:48.3]} 3... Nd4 {[%clk
0:02:54.9]} 4. Bc4 {[%clk 0:02:47.5]} 4... e6 {[%clk 0:02:48.3]} 5. Nge2 {[%clk
0:02:46.9]} 5... a6 {[%clk 0:02:44.6]} 6. a4 {[%clk 0:02:46.4]} 6... b6 {[%clk
0:02:43.6]} 7. Nxd4 {[%clk 0:02:43.9]} 7... cxd4 {[%clk 0:02:44.5]} 8. Ne2
{[%clk 0:02:40.3]} 8... Bb7 {[%clk 0:02:45.4]} 9. d3 {[%clk 0:02:38.2]} 9... d5
{[%clk 0:02:36.4]} 10. exd5 {[%clk 0:02:37.5]} 10... Bxd5 {[%clk 0:02:36.5]} 11.
Nxd4 {[%clk 0:02:34.9]} 11... Bxg2 {[%clk 0:02:28]} 12. Rg1 {[%clk 0:02:33.9]}
12... Bb7 {[%clk 0:02:20.8]} 13. Qe2 {[%clk 0:02:32.4]} 13... Qxd4 {[%clk
0:02:12.9]} 14. c3 {[%clk 0:02:26.4]} 14... Qd7 {[%clk 0:01:52.8]} 15. Be3
{[%clk 0:02:23.8]} 15... Nf6 {[%clk 0:01:46.4]} 16. Bxb6 {[%clk 0:02:22.4]}
16... Nd5 {[%clk 0:01:45.4]} 17. Bd4 {[%clk 0:02:20.9]} 17... f6 {[%clk
0:01:40.3]} 18. Qh5+ {[%clk 0:02:18.9]} 18... g6 {[%clk 0:01:15.7]} 19. Qe2
{[%clk 0:02:15.9]} 19... O-O-O {[%clk 0:01:05.6]} 20. Kd1 {[%clk 0:02:13.5]}
20... e5 {[%clk 0:00:59.5]} 21. Ba7 {[%clk 0:02:09.8]} 21... Nf4 {[%clk
0:00:57.8]} 22. Qe3 {[%clk 0:02:02.7]} 22... Nxd3 {[%clk 0:00:55.6]} 23. Kc2
{[%clk 0:02:02.4]} 23... e4 {[%clk 0:00:47.9]} 24. f3 {[%clk 0:01:53.7]} 24...
f5 {[%clk 0:00:46.3]} 25. fxe4 {[%clk 0:01:53.4]} 25... fxe4 {[%clk 0:00:42.7]}
26. Rg5 {[%clk 0:01:30.9]} 26... Bh6 {[%clk 0:00:41]} 27. Rc5+ {[%clk
0:01:30.5]} 27... Bc6 {[%clk 0:00:36.7]} 28. Bxa6+ {[%clk 0:01:24.5]} 28... Kc7
{[%clk 0:00:36.3]} 29. Qxh6 {[%clk 0:01:00.8]} 29... Nxc5 {[%clk 0:00:35.8]} 30.
Bxc5 {[%clk 0:01:00.5]} 30... Bxa4+ {[%clk 0:00:35.6]} 31. b3 {[%clk 0:00:56.1]}
31... Bc6 {[%clk 0:00:31.7]} 32. Qf4+ {[%clk 0:00:54.4]} 32... Qd6 {[%clk
0:00:25.3]} 33. Bxd6+ {[%clk 0:00:53.6]} 33... Rxd6 {[%clk 0:00:26.2]} 34. Qf7+
{[%clk 0:00:53]} 34... Rd7 {[%clk 0:00:26.1]} 35. Qf6 {[%clk 0:00:50]} 35...
Rhd8 {[%clk 0:00:24.9]} 36. Qf4+ {[%clk 0:00:49]} 36... Kb6 {[%clk 0:00:23.3]}
37. Qe3+ {[%clk 0:00:48.9]} 37... Kc7 {[%clk 0:00:22.6]} 38. Qa7+ {[%clk
0:00:48.8]} 38... Kd6 {[%clk 0:00:21.1]} 39. Rd1+ {[%clk 0:00:48.6]} 39... Ke6
{[%clk 0:00:20.3]} 40. Rxd7 {[%clk 0:00:46.7]} 40... Rxd7 {[%clk 0:00:21.2]} 41.
Qc5 {[%clk 0:00:46.5]} 41... Rd6 {[%clk 0:00:21.2]} 42. Bc4+ {[%clk 0:00:45.5]}
42... Bd5 {[%clk 0:00:19.4]} 43. Qc8+ {[%clk 0:00:43.4]} 43... Ke5 {[%clk
0:00:18.9]} 44. Qe8+ {[%clk 0:00:42.3]} 44... Be6 {[%clk 0:00:17.7]} 45. Qh8+
{[%clk 0:00:41.1]} 45... Kf5 {[%clk 0:00:17.1]} 46. Qf8+ {[%clk 0:00:40.4]}
46... Ke5 {[%clk 0:00:13.1]} 47. Be2 {[%clk 0:00:38.5]} 47... e3 {[%clk
0:00:12.1]} 48. Qf3 {[%clk 0:00:37]} 48... Bf5+ {[%clk 0:00:11.9]} 49. Kc1
{[%clk 0:00:37.2]} 49... Rd5 {[%clk 0:00:02.6]} 50. Qxe3+ {[%clk 0:00:37]} 50...
Kd6 {[%clk 0:00:02.2]} 51. Bc4 {[%clk 0:00:36.5]} 51... Re5 {[%clk 0:00:02.5]}
52. Qd4+ {[%clk 0:00:36.4]} 1-0

[Event "*** Titled Tuesday Blitz"]
[Site "Chess.com"]
[Date "2021.04.06"]
[Round "5"]
[White "SilviusTiberius"]
[Black "hansen"]
[Result "1-0"]
[WhiteElo "2616"]
[BlackElo "2822"]
[TimeControl "180+1"]
[EndTime "10:58:07 PDT"]
[Termination "SilviusTiberius won by resignation"]

1. e4 {[%clk 0:03:00.9]} 1... c5 {[%clk 0:02:56.9]} 2. Nf3 {[%clk 0:03:00.7]}
2... e6 {[%clk 0:02:56.9]} 3. d4 {[%clk 0:03:01]} 3... cxd4 {[%clk 0:02:57.4]}
4. Nxd4 {[%clk 0:03:01.6]} 4... a6 {[%clk 0:02:57.9]} 5. c4 {[%clk 0:03:01.7]}
5... Qc7 {[%clk 0:02:57.4]} 6. Nc3 {[%clk 0:03:00.7]} 6... Nf6 {[%clk
0:02:57.8]} 7. a3 {[%clk 0:03:00.1]} 7... Nc6 {[%clk 0:02:57.9]} 8. Be3 {[%clk
0:02:57.4]} 8... d6 {[%clk 0:02:56.8]} 9. Rc1 {[%clk 0:02:56.2]} 9... Nxd4
{[%clk 0:02:54.9]} 10. Qxd4 {[%clk 0:02:54.6]} 10... Be7 {[%clk 0:02:55.8]} 11.
Be2 {[%clk 0:02:53.3]} 11... O-O {[%clk 0:02:56.3]} 12. O-O {[%clk 0:02:51.5]}
12... Bd7 {[%clk 0:02:56.8]} 13. f4 {[%clk 0:02:50.7]} 13... Rfc8 {[%clk
0:02:53.2]} 14. b4 {[%clk 0:02:44.9]} 14... Be8 {[%clk 0:02:37.5]} 15. g4 {[%clk
0:02:29.9]} 15... a5 {[%clk 0:02:31.5]} 16. b5 {[%clk 0:02:14.3]} 16... Nd7
{[%clk 0:02:30.1]} 17. Na4 {[%clk 0:02:10]} 17... Rab8 {[%clk 0:02:23.5]} 18. g5
{[%clk 0:02:03.5]} 18... e5 {[%clk 0:02:17.6]} 19. Qd2 {[%clk 0:02:01.9]} 19...
exf4 {[%clk 0:02:17]} 20. Bxf4 {[%clk 0:01:58.7]} 20... b6 {[%clk 0:02:14.7]}
21. Nc3 {[%clk 0:01:54.1]} 21... Ne5 {[%clk 0:02:14.7]} 22. Nd5 {[%clk
0:01:53.5]} 22... Qd8 {[%clk 0:02:14.6]} 23. Rf2 {[%clk 0:01:41]} 23... Bd7
{[%clk 0:02:14.6]} 24. Kh1 {[%clk 0:01:38.5]} 24... Be6 {[%clk 0:02:13.9]} 25.
h4 {[%clk 0:01:04.7]} 25... Rc5 {[%clk 0:01:53.4]} 26. Qd4 {[%clk 0:01:02.1]}
26... Rbc8 {[%clk 0:01:49.1]} 27. Rg2 {[%clk 0:00:54.8]} 27... Bf8 {[%clk
0:01:22.1]} 28. h5 {[%clk 0:00:53.5]} 28... Bxd5 {[%clk 0:01:20]} 29. exd5
{[%clk 0:00:52.8]} 29... g6 {[%clk 0:01:19.3]} 30. h6 {[%clk 0:00:37.1]} 30...
Qe7 {[%clk 0:01:18.5]} 31. Rf2 {[%clk 0:00:34.1]} 31... Re8 {[%clk 0:01:11]} 32.
Rc3 {[%clk 0:00:33]} 32... Qd7 {[%clk 0:01:04.1]} 33. Re3 {[%clk 0:00:29.9]}
33... Qf5 {[%clk 0:00:53.3]} 34. Kg2 {[%clk 0:00:19.5]} 34... Rcc8 {[%clk
0:00:33.8]} 35. Re4 {[%clk 0:00:19.7]} 35... Nc6 {[%clk 0:00:20.6]} 36. dxc6
{[%clk 0:00:13.4]} 36... Rxe4 {[%clk 0:00:20.6]} 37. Qd2 {[%clk 0:00:11]} 37...
Qe6 {[%clk 0:00:16.8]} 38. Bf3 {[%clk 0:00:10.5]} 38... Rxc4 {[%clk 0:00:14]}
39. Bd5 {[%clk 0:00:10.3]} 39... Qg4+ {[%clk 0:00:13.5]} 40. Bg3 {[%clk
0:00:10.6]} 40... Rc7 {[%clk 0:00:08.1]} 41. Bxc4 {[%clk 0:00:10.9]} 41... Qxc4
{[%clk 0:00:09]} 42. Bxd6 {[%clk 0:00:11.1]} 42... Qe4+ {[%clk 0:00:08.6]} 43.
Kh2 {[%clk 0:00:10.2]} 43... Qh4+ {[%clk 0:00:08.6]} 44. Kg2 {[%clk 0:00:10.1]}
44... Qg4+ {[%clk 0:00:06.7]} 45. Bg3 {[%clk 0:00:10]} 45... Re7 {[%clk
0:00:04.9]} 46. Qd8 {[%clk 0:00:09.9]} 46... Qe4+ {[%clk 0:00:04.3]} 47. Kh2
{[%clk 0:00:09.7]} 47... Qc4 {[%clk 0:00:03.3]} 48. c7 {[%clk 0:00:10.2]} 48...
Re4 {[%clk 0:00:02.2]} 49. c8=Q {[%clk 0:00:09.9]} 1-0

[Event "*** Titled Tuesday Blitz"]
[Site "Chess.com"]
[Date "2021.04.06"]
[Round "5"]
[White "Ajedrez_con_German"]
[Black "Arseniy_Nesterov"]
[Result "0-1"]
[WhiteElo "2475"]
[BlackElo "2761"]
[TimeControl "180+1"]
[EndTime "10:58:07 PDT"]
[Termination "Arseniy_Nesterov won on time"]

1. d4 {[%clk 0:03:00.9]} 1... Nf6 {[%clk 0:02:59.3]} 2. Bf4 {[%clk 0:02:53.4]}
2... d5 {[%clk 0:02:58.4]} 3. e3 {[%clk 0:02:53.2]} 3... e6 {[%clk 0:02:58.6]}
4. Nf3 {[%clk 0:02:52.5]} 4... Bd6 {[%clk 0:02:58.4]} 5. Bg3 {[%clk 0:02:51.9]}
5... c5 {[%clk 0:02:54.7]} 6. c3 {[%clk 0:02:51.4]} 6... Qc7 {[%clk 0:02:54.1]}
7. Nbd2 {[%clk 0:02:48.6]} 7... Nbd7 {[%clk 0:02:53.3]} 8. Bd3 {[%clk
0:02:43.8]} 8... O-O {[%clk 0:02:52.4]} 9. O-O {[%clk 0:02:41.5]} 9... e5 {[%clk
0:02:52.6]} 10. dxe5 {[%clk 0:02:41.1]} 10... Nxe5 {[%clk 0:02:52.3]} 11. Nxe5
{[%clk 0:02:41.2]} 11... Bxe5 {[%clk 0:02:53.2]} 12. Nf3 {[%clk 0:02:39.2]}
12... Bxg3 {[%clk 0:02:52.4]} 13. hxg3 {[%clk 0:02:38.8]} 13... Bg4 {[%clk
0:02:48.5]} 14. Qc2 {[%clk 0:02:35]} 14... h6 {[%clk 0:02:41.6]} 15. Bf5 {[%clk
0:02:33.5]} 15... Bxf3 {[%clk 0:02:13.6]} 16. gxf3 {[%clk 0:02:32.7]} 16... g6
{[%clk 0:02:14.2]} 17. Bd3 {[%clk 0:02:30]} 17... Rad8 {[%clk 0:02:01.9]} 18.
Kg2 {[%clk 0:02:29.1]} 18... h5 {[%clk 0:02:00.2]} 19. Rh1 {[%clk 0:02:23.3]}
19... Kg7 {[%clk 0:01:59.8]} 20. Rad1 {[%clk 0:02:21.5]} 20... Rfe8 {[%clk
0:01:59]} 21. Be2 {[%clk 0:02:17]} 21... Qb6 {[%clk 0:01:55]} 22. Qb3 {[%clk
0:02:14.6]} 22... Qc7 {[%clk 0:01:43.5]} 23. f4 {[%clk 0:02:08.8]} 23... d4
{[%clk 0:01:42.6]} 24. cxd4 {[%clk 0:02:00.6]} 24... cxd4 {[%clk 0:01:42.6]} 25.
Bf3 {[%clk 0:01:33.7]} 25... dxe3 {[%clk 0:01:40.4]} 26. fxe3 {[%clk 0:01:33.6]}
26... b6 {[%clk 0:01:32.9]} 27. Rxd8 {[%clk 0:01:33.2]} 27... Rxd8 {[%clk
0:01:29.9]} 28. Rd1 {[%clk 0:01:33.5]} 28... Re8 {[%clk 0:01:20.6]} 29. Qd3
{[%clk 0:01:16.1]} 29... Qe7 {[%clk 0:01:05.3]} 30. Re1 {[%clk 0:01:08.9]} 30...
Rd8 {[%clk 0:00:57.2]} 31. Qc3 {[%clk 0:01:08.5]} 31... Kg8 {[%clk 0:00:57.2]}
32. e4 {[%clk 0:01:07.4]} 32... Nd7 {[%clk 0:00:42.9]} 33. b4 {[%clk 0:01:01.5]}
33... Nf8 {[%clk 0:00:41.1]} 34. a3 {[%clk 0:00:52.5]} 34... Ne6 {[%clk
0:00:39.6]} 35. Rd1 {[%clk 0:00:47.9]} 35... Rxd1 {[%clk 0:00:34.9]} 36. Bxd1
{[%clk 0:00:46.8]} 36... h4 {[%clk 0:00:35.4]} 37. Bb3 {[%clk 0:00:40.6]} 37...
Ng7 {[%clk 0:00:25.7]} 38. Bd5 {[%clk 0:00:34.1]} 38... Nh5 {[%clk 0:00:24.5]}
39. Qc6 {[%clk 0:00:20.3]} 39... Kg7 {[%clk 0:00:18.2]} 40. Qc3+ {[%clk
0:00:20.1]} 40... Kh7 {[%clk 0:00:17.9]} 41. Qe5 {[%clk 0:00:11.5]} 41... Qd7
{[%clk 0:00:10.1]} 42. f5 {[%clk 0:00:08]} 42... hxg3 {[%clk 0:00:10]} 43. fxg6+
{[%clk 0:00:08.3]} 43... fxg6 {[%clk 0:00:10.2]} 44. Qg5 {[%clk 0:00:05.1]}
44... Qg7 {[%clk 0:00:09.4]} 45. Kh3 {[%clk 0:00:03.1]} 45... Qf8 {[%clk
0:00:06.3]} 0-1

[Event "*** Titled Tuesday Blitz"]
[Site "Chess.com"]
[Date "2021.04.06"]
[Round "5"]
[White "Fortitudine"]
[Black "LileKoridze"]
[Result "1/2-1/2"]
[WhiteElo "2281"]
[BlackElo "2457"]
[TimeControl "180+1"]
[EndTime "10:58:07 PDT"]
[Termination "Game drawn - insufficient material"]

1. c4 {[%clk 0:03:00.9]} 1... e5 {[%clk 0:02:59.2]} 2. g3 {[%clk 0:03:00]} 2...
Nf6 {[%clk 0:02:59]} 3. Bg2 {[%clk 0:02:59.8]} 3... d5 {[%clk 0:02:58.6]} 4.
cxd5 {[%clk 0:03:00.7]} 4... Nxd5 {[%clk 0:02:59.5]} 5. Nc3 {[%clk 0:03:01]}
5... Nb6 {[%clk 0:03:00]} 6. d3 {[%clk 0:03:00.6]} 6... Nc6 {[%clk 0:03:00.5]}
7. Nf3 {[%clk 0:02:56.2]} 7... Be7 {[%clk 0:03:00.1]} 8. O-O {[%clk 0:02:55.1]}
8... O-O {[%clk 0:03:00]} 9. a3 {[%clk 0:02:51.1]} 9... Be6 {[%clk 0:02:57.9]}
10. Be3 {[%clk 0:02:50]} 10... f6 {[%clk 0:02:45.5]} 11. Rc1 {[%clk 0:02:36.9]}
11... Nd4 {[%clk 0:02:44.8]} 12. Nd2 {[%clk 0:02:36.8]} 12... c6 {[%clk
0:02:37.2]} 13. Nce4 {[%clk 0:02:21.9]} 13... Nd5 {[%clk 0:01:46.9]} 14. Bxd4
{[%clk 0:01:56.7]} 14... exd4 {[%clk 0:01:46.2]} 15. Nc5 {[%clk 0:01:56.8]}
15... Bxc5 {[%clk 0:01:45.3]} 16. Rxc5 {[%clk 0:01:57.7]} 16... Qb6 {[%clk
0:01:45.9]} 17. Bxd5 {[%clk 0:00:38.2]} 17... Bxd5 {[%clk 0:01:42.9]} 18. b4
{[%clk 0:00:38.7]} 18... a5 {[%clk 0:01:34.2]} 19. Nc4 {[%clk 0:00:30.7]} 19...
Qc7 {[%clk 0:01:30.9]} 20. Rxa5 {[%clk 0:00:29.6]} 20... b5 {[%clk 0:01:21.4]}
21. Rxa8 {[%clk 0:00:28.5]} 21... Rxa8 {[%clk 0:01:19.7]} 22. Na5 {[%clk
0:00:28.3]} 22... Qe5 {[%clk 0:01:18.9]} 23. Qd2 {[%clk 0:00:26.9]} 23... Qh5
{[%clk 0:01:18]} 24. f3 {[%clk 0:00:26.3]} 24... Re8 {[%clk 0:01:17.3]} 25. Rf2
{[%clk 0:00:25.4]} 25... Re3 {[%clk 0:01:10.7]} 26. Qc1 {[%clk 0:00:20.3]} 26...
Re6 {[%clk 0:00:58.4]} 27. Qf4 {[%clk 0:00:17.9]} 27... Qe8 {[%clk 0:00:56.9]}
28. Nb7 {[%clk 0:00:13.6]} 28... Rxe2 {[%clk 0:00:53.4]} 29. Rxe2 {[%clk
0:00:13]} 29... Qxe2 {[%clk 0:00:54.3]} 30. Qb8+ {[%clk 0:00:12.7]} 30... Kf7
{[%clk 0:00:54.8]} 31. Nd6+ {[%clk 0:00:12.4]} 31... Kg6 {[%clk 0:00:49.5]} 32.
Qe8+ {[%clk 0:00:12.9]} 32... Qxe8 {[%clk 0:00:49.5]} 33. Nxe8 {[%clk
0:00:13.8]} 33... Bxf3 {[%clk 0:00:49.7]} 34. Kf2 {[%clk 0:00:14.4]} 34... Bd5
{[%clk 0:00:49.5]} 35. Nc7 {[%clk 0:00:14]} 35... Bf7 {[%clk 0:00:45.7]} 36. Na6
{[%clk 0:00:13.6]} 36... Kf5 {[%clk 0:00:45.3]} 37. Nc5 {[%clk 0:00:10.8]} 37...
Ke5 {[%clk 0:00:44.8]} 38. a4 {[%clk 0:00:10.6]} 38... bxa4 {[%clk 0:00:43.8]}
39. Nxa4 {[%clk 0:00:11.5]} 39... Kd5 {[%clk 0:00:43.6]} 40. Nb6+ {[%clk
0:00:11]} 40... Ke5 {[%clk 0:00:43.8]} 41. Nd7+ {[%clk 0:00:10.5]} 41... Kd6
{[%clk 0:00:43.1]} 42. Nc5 {[%clk 0:00:09.6]} 42... Bg6 {[%clk 0:00:40]} 43. Kf3
{[%clk 0:00:09.5]} 43... Kd5 {[%clk 0:00:39.1]} 44. Kf4 {[%clk 0:00:09.5]} 44...
h6 {[%clk 0:00:38.8]} 45. h4 {[%clk 0:00:09.7]} 45... Bh7 {[%clk 0:00:38.9]} 46.
h5 {[%clk 0:00:09.8]} 46... g6 {[%clk 0:00:39.5]} 47. hxg6 {[%clk 0:00:10.7]}
47... Bxg6 {[%clk 0:00:40.4]} 48. g4 {[%clk 0:00:11.3]} 48... h5 {[%clk
0:00:37.5]} 49. gxh5 {[%clk 0:00:10.9]} 49... Bxh5 {[%clk 0:00:37.9]} 50. Kf5
{[%clk 0:00:11.7]} 50... Be2 {[%clk 0:00:37.4]} 51. Kxf6 {[%clk 0:00:12]} 51...
Bxd3 {[%clk 0:00:24.7]} 52. Nxd3 {[%clk 0:00:12.9]} 52... Kc4 {[%clk 0:00:25.4]}
53. Ne5+ {[%clk 0:00:11]} 53... Kxb4 {[%clk 0:00:25.7]} 54. Nxc6+ {[%clk
0:00:11.2]} 54... Kc3 {[%clk 0:00:26.3]} 55. Nxd4 {[%clk 0:00:12]} 1/2-1/2